Organisation Name,Organisation Code,Directorate/Service,Service Category Label,Service Code,Supplier Name,Supplier Reference,Payment Date,Transaction Number,Net Payments,Purpose of Spend
North West Leicestershire District Council,31UH,Housing Repairs,HRA Housing Repairs & Maintenance,HRAHRM,Timber-Link Fencing Ltd,A033297,06/07/2022,06/07/2022,817.00,External Contractor Payments
North West Leicestershire District Council,31UH,Housing Repairs,HRA Housing Repairs & Maintenance,HRAHRM,Timber-Link Fencing Ltd,A033297,06/07/2022,06/07/2022,615.00,External Contractor Payments
North West Leicestershire District Council,31UH,Housing Repairs,HRA Housing Repairs & Maintenance,HRAHRM,Timber-Link Fencing Ltd,A033297,06/07/2022,06/07/2022,1078.00,External Contractor Payments
North West Leicestershire District Council,31UH,Housing Repairs,HRA Housing Repairs & Maintenance,HRAHRM,Timber-Link Fencing Ltd,A033297,06/07/2022,06/07/2022,540.00,External Contractor Payments
North West Leicestershire District Council,31UH,Housing Repairs,HRA Housing Repairs & Maintenance,HRAHRM,Timber-Link Fencing Ltd,A033297,06/07/2022,06/07/2022,2366.00,External Contractor Payments
North West Leicestershire District Council,31UH,Housing Repairs,HRA Housing Repairs & Maintenance,HRAHRM,Timber-Link Fencing Ltd,A033297,06/07/2022,06/07/2022,1858.00,External Contractor Payments
North West Leicestershire District Council,31UH,Housing Repairs,HRA Housing Repairs & Maintenance,HRAHRM,Timber-Link Fencing Ltd,A033297,06/07/2022,06/07/2022,450.00,External Contractor Payments
North West Leicestershire District Council,31UH,Housing Repairs,HRA Housing Repairs & Maintenance,HRAHRM,Timber-Link Fencing Ltd,A033297,06/07/2022,06/07/2022,330.00,External Contractor Payments
North West Leicestershire District Council,31UH,Housing Repairs,HRA Housing Repairs & Maintenance,HRAHRM,Timber-Link Fencing Ltd,A033297,06/07/2022,06/07/2022,550.00,External Contractor Payments
North West Leicestershire District Council,31UH,Housing Repairs,HRA Housing Repairs & Maintenance,HRAHRM,Timber-Link Fencing Ltd,A033297,06/07/2022,06/07/2022,780.00,External Contractor Payments
North West Leicestershire District Council,31UH,Housing Repairs,HRA Housing Repairs & Maintenance,HRAHRM,Emperor Scaffolding Limited,A038405,06/07/2022,06/07/2022,440.00,General Materials
North West Leicestershire District Council,31UH,Housing Repairs,HRA Housing Repairs & Maintenance,HRAHRM,Emperor Scaffolding Limited,A038405,06/07/2022,06/07/2022,375.00,General Materials
North West Leicestershire District Council,31UH,Housing Repairs,HRA Housing Repairs & Maintenance,HRAHRM,Laker BMS Ltd,A031787,06/07/2022,06/07/2022,6016.00,Contract Payments (Dws) Ext
North West Leicestershire District Council,31UH,Housing Repairs,HRA Housing Repairs & Maintenance,HRAHRM,John Merison BMC Ltd,A001092,06/07/2022,06/07/2022,1498.98,Contract Payments (Dws) Ext
North West Leicestershire District Council,31UH,Housing Repairs,HRA Housing Repairs & Maintenance,HRAHRM,Emperor Scaffolding Limited,A038405,06/07/2022,06/07/2022,300.00,General Materials
North West Leicestershire District Council,31UH,Housing Repairs,HRA Housing Repairs & Maintenance,HRAHRM,Emperor Scaffolding Limited,A038405,06/07/2022,06/07/2022,595.00,General Materials
North West Leicestershire District Council,31UH,Housing Repairs,HRA Housing Repairs & Maintenance,HRAHRM,Premier Mobility UK Ltd,A045304,06/07/2022,06/07/2022,329.88,Contract Payments (Dws) Ext
North West Leicestershire District Council,31UH,Housing Repairs,HRA Housing Repairs & Maintenance,HRAHRM,Laker BMS Ltd,A031787,06/07/2022,06/07/2022,250.00,Contract Payments (Dws) Ext
North West Leicestershire District Council,31UH,Housing Repairs,HRA Housing Repairs & Maintenance,HRAHRM,Dalrod UK Ltd,A046051,06/07/2022,06/07/2022,748.28,Sewerage & Environmental
North West Leicestershire District Council,31UH,Housing Repairs,HRA Housing Repairs & Maintenance,HRAHRM,Emperor Scaffolding Limited,A038405,06/07/2022,06/07/2022,375.00,General Materials
North West Leicestershire District Council,31UH,Housing Repairs,HRA Housing Repairs & Maintenance,HRAHRM,Emperor Scaffolding Limited,A038405,06/07/2022,06/07/2022,395.00,General Materials
North West Leicestershire District Council,31UH,Housing Repairs,HRA Housing Repairs & Maintenance,HRAHRM,Laker BMS Ltd,A031787,06/07/2022,06/07/2022,1363.00,Contract Payments (Dws) Ext
North West Leicestershire District Council,31UH,Housing Repairs,HRA Housing Repairs & Maintenance,HRAHRM,Dalrod UK Ltd,A046051,06/07/2022,06/07/2022,950.00,Sewerage & Environmental
North West Leicestershire District Council,31UH,Housing Repairs,HRA Housing Repairs & Maintenance,HRAHRM,Laker BMS Ltd,A031787,06/07/2022,06/07/2022,12777.53,Contract Payments (Dws) Ext
North West Leicestershire District Council,31UH,Housing Repairs,HRA Housing Repairs & Maintenance,HRAHRM,Emperor Scaffolding Limited,A038405,06/07/2022,06/07/2022,600.00,General Materials
North West Leicestershire District Council,31UH,Housing Repairs,HRA Housing Repairs & Maintenance,HRAHRM,Emperor Scaffolding Limited,A038405,06/07/2022,06/07/2022,395.00,General Materials
North West Leicestershire District Council,31UH,Housing Repairs,HRA Housing Repairs & Maintenance,HRAHRM,Premier Mobility UK Ltd,A045304,06/07/2022,06/07/2022,1674.76,Contract Payments (Dws) Ext
North West Leicestershire District Council,31UH,Housing Repairs,HRA Housing Repairs & Maintenance,HRAHRM,Laker BMS Ltd,A031787,06/07/2022,06/07/2022,3735.00,Contract Payments (Dws) Ext
North West Leicestershire District Council,31UH,Housing Repairs,HRA Housing Repairs & Maintenance,HRAHRM,Severn Trent Water Limited,A001468,06/07/2022,06/07/2022,481.88,Water related Commercial Works
North West Leicestershire District Council,31UH,Housing Repairs,HRA Housing Repairs & Maintenance,HRAHRM,Laker BMS Ltd,A031787,06/07/2022,06/07/2022,5535.00,Contract Payments (Dws) Ext
North West Leicestershire District Council,31UH,Housing Repairs,HRA Housing Repairs & Maintenance,HRAHRM,Laker BMS Ltd,A031787,06/07/2022,06/07/2022,447.00,Contract Payments (Dws) Ext
North West Leicestershire District Council,31UH,Housing Repairs,HRA Housing Repairs & Maintenance,HRAHRM,Laker BMS Ltd,A031787,06/07/2022,06/07/2022,320.00,Contract Payments (Dws) Ext
North West Leicestershire District Council,31UH,Housing Repairs,HRA Housing Repairs & Maintenance,HRAHRM,Laker BMS Ltd,A031787,06/07/2022,06/07/2022,320.00,Contract Payments (Dws) Ext
North West Leicestershire District Council,31UH,Housing Repairs,HRA Housing Repairs & Maintenance,HRAHRM,Timber-Link Fencing Ltd,A033297,13/07/2022,13/07/2022,2440.00,External Contractor Payments
North West Leicestershire District Council,31UH,Housing Repairs,HRA Housing Repairs & Maintenance,HRAHRM,Timber-Link Fencing Ltd,A033297,13/07/2022,13/07/2022,325.00,External Contractor Payments
North West Leicestershire District Council,31UH,Housing Repairs,HRA Housing Repairs & Maintenance,HRAHRM,Timber-Link Fencing Ltd,A033297,13/07/2022,13/07/2022,657.00,External Contractor Payments
North West Leicestershire District Council,31UH,Housing Repairs,HRA Housing Repairs & Maintenance,HRAHRM,Timber-Link Fencing Ltd,A033297,13/07/2022,13/07/2022,268.00,External Contractor Payments
North West Leicestershire District Council,31UH,Housing Repairs,HRA Housing Repairs & Maintenance,HRAHRM,Emperor Scaffolding Limited,A038405,27/07/2022,27/07/2022,300.00,General Materials
North West Leicestershire District Council,31UH,Housing Repairs,HRA Housing Repairs & Maintenance,HRAHRM,Emperor Scaffolding Limited,A038405,27/07/2022,27/07/2022,375.00,General Materials
North West Leicestershire District Council,31UH,Housing Repairs,HRA Housing Repairs & Maintenance,HRAHRM,Emperor Scaffolding Limited,A038405,27/07/2022,27/07/2022,375.00,General Materials
North West Leicestershire District Council,31UH,Housing Repairs,HRA Housing Repairs & Maintenance,HRAHRM,Laker BMS Ltd,A031787,27/07/2022,27/07/2022,3395.86,Contract Payments (Dws) Ext
North West Leicestershire District Council,31UH,Housing Repairs,HRA Housing Repairs & Maintenance,HRAHRM,Dalrod UK Ltd,A046051,27/07/2022,27/07/2022,1250.00,Sewerage & Environmental
North West Leicestershire District Council,31UH,Housing Repairs,HRA Housing Repairs & Maintenance,HRAHRM,Emperor Scaffolding Limited,A038405,27/07/2022,27/07/2022,300.00,General Materials
North West Leicestershire District Council,31UH,Housing Repairs,HRA Housing Repairs & Maintenance,HRAHRM,Emperor Scaffolding Limited,A038405,27/07/2022,27/07/2022,375.00,General Materials
North West Leicestershire District Council,31UH,Housing Repairs,HRA Housing Repairs & Maintenance,HRAHRM,Emperor Scaffolding Limited,A038405,27/07/2022,27/07/2022,300.00,General Materials
North West Leicestershire District Council,31UH,Housing Repairs,HRA Housing Repairs & Maintenance,HRAHRM,Laker BMS Ltd,A031787,27/07/2022,27/07/2022,7586.00,Contract Payments (Dws) Ext
North West Leicestershire District Council,31UH,Housing Repairs,HRA Housing Repairs & Maintenance,HRAHRM,Dalrod UK Ltd,A046051,27/07/2022,27/07/2022,950.00,Sewerage & Environmental
North West Leicestershire District Council,31UH,Housing Repairs,HRA Housing Repairs & Maintenance,HRAHRM,Dalrod UK Ltd,A046051,27/07/2022,27/07/2022,995.00,Sewerage & Environmental
North West Leicestershire District Council,31UH,Housing Repairs,HRA Housing Repairs & Maintenance,HRAHRM,Emperor Scaffolding Limited,A038405,27/07/2022,27/07/2022,600.00,General Materials
North West Leicestershire District Council,31UH,Housing Repairs,HRA Housing Repairs & Maintenance,HRAHRM,Emperor Scaffolding Limited,A038405,27/07/2022,27/07/2022,300.00,General Materials
North West Leicestershire District Council,31UH,Housing Repairs,HRA Housing Repairs & Maintenance,HRAHRM,Emperor Scaffolding Limited,A038405,27/07/2022,27/07/2022,375.00,General Materials
North West Leicestershire District Council,31UH,Housing Repairs,HRA Housing Repairs & Maintenance,HRAHRM,Laker BMS Ltd,A031787,27/07/2022,27/07/2022,3350.00,Contract Payments (Dws) Ext
North West Leicestershire District Council,31UH,Housing Repairs,HRA Housing Repairs & Maintenance,HRAHRM,Dalrod UK Ltd,A046051,27/07/2022,27/07/2022,1022.57,Sewerage & Environmental
North West Leicestershire District Council,31UH,Housing Repairs,HRA Housing Repairs & Maintenance,HRAHRM,Emperor Scaffolding Limited,A038405,27/07/2022,27/07/2022,300.00,General Materials
North West Leicestershire District Council,31UH,Housing Repairs,HRA Housing Repairs & Maintenance,HRAHRM,Emperor Scaffolding Limited,A038405,27/07/2022,27/07/2022,395.00,General Materials
North West Leicestershire District Council,31UH,Housing Repairs,HRA Housing Repairs & Maintenance,HRAHRM,Emperor Scaffolding Limited,A038405,27/07/2022,27/07/2022,395.00,General Materials
North West Leicestershire District Council,31UH,Housing Repairs,HRA Housing Repairs & Maintenance,HRAHRM,Dalrod UK Ltd,A046051,27/07/2022,27/07/2022,1627.15,Sewerage & Environmental
North West Leicestershire District Council,31UH,Housing,HRA Housing Management,HRAHM,Linford & Verdon Tenants and,A011717,06/07/2022,06/07/2022,600.00,Grants
North West Leicestershire District Council,31UH,Finance,Exchequer Services,EXCH,Comensura Limited,A036958,06/07/2022,06/07/2022,20114.43,Agency Staff
North West Leicestershire District Council,31UH,Neighbourhoods & Communities,N & C Neighbourhoods,NACN,Hugglescote & Donington Le Heath,A038616,06/07/2022,06/07/2022,500.00,Grants
North West Leicestershire District Council,31UH,Finance,Exchequer Services,EXCH,Click Travel Ltd,A044308,06/07/2022,06/07/2022,6416.35,Accomodation and Travel
North West Leicestershire District Council,31UH,Housing Repairs,HRA Housing Repairs & Maintenance,HRAHRM,McHale Contracts & Plant Environmental LLP,A046696,06/07/2022,06/07/2022,6661.29,Asbestos Surveys
North West Leicestershire District Council,31UH,Property Services,Property Commercial Lettings,PROPCL,Water Plus Limited,A044043,06/07/2022,06/07/2022,340.34,Water Charges (Metered)
North West Leicestershire District Council,31UH,Housing Repairs,HRA Housing Repairs & Maintenance,HRAHRM,Dalrod UK Ltd,A046051,06/07/2022,06/07/2022,1250.00,Sewerage & Environmental
North West Leicestershire District Council,31UH,Finance,Exchequer Services,EXCH,Comensura Limited,A036958,06/07/2022,06/07/2022,24145.95,Agency Staff
North West Leicestershire District Council,31UH,Economic Development,Business Focus Group,BFG,Redacted-Personal Data,A046403,06/07/2022,06/07/2022,1244.34,Grants
North West Leicestershire District Council,31UH,Housing,HRA Housing Management,HRAHM,JLA Limited,A043639,06/07/2022,06/07/2022,427.84,Cleaning & Domestic Equipment
North West Leicestershire District Council,31UH,Street Management,Environment Parks,ENOP,Allstar Business Solutions Ltd,A039425,06/07/2022,06/07/2022,303.70,Petrol
North West Leicestershire District Council,31UH,Housing Repairs,HRA Housing Repairs & Maintenance,HRAHRM,ABCA Systems Limited,A047114,06/07/2022,06/07/2022,1771.94,Contract Payments (Dws) Ext
North West Leicestershire District Council,31UH,Legal & Democratic,Legal Services,LDLS,Freeths LLP,A038047,06/07/2022,06/07/2022,955.00,Advertising
North West Leicestershire District Council,31UH,Housing,HRA Housing Management,HRAHM,Redacted-Personal Data,A047526,06/07/2022,06/07/2022,378.97,Compensation
North West Leicestershire District Council,31UH,Housing Repairs,HRA Housing Repairs & Maintenance,HRAHRM,Dalrod UK Ltd,A046051,06/07/2022,06/07/2022,4158.01,Sewerage & Environmental
North West Leicestershire District Council,31UH,Property Services,Property Commercial Lettings,PROPCL,British Telecommunications Plc,A000233,06/07/2022,06/07/2022,515.21,Telephones
North West Leicestershire District Council,31UH,Property Services,Property Commercial Lettings,PROPCL,British Telecommunications Plc,A000233,06/07/2022,06/07/2022,535.59,Telephones
North West Leicestershire District Council,31UH,Housing Repairs,HRA Housing Repairs & Maintenance,HRAHRM,Everwarm Limited,A044582,06/07/2022,06/07/2022,40698.06,Contract Payments (Dws) Ext
North West Leicestershire District Council,31UH,Finance,Financial Planning,FINPLA,"Leicester, Leicestershire & Rutland Combined Fire Authority",A028339,12/07/2022,12/07/2022,268708.00,Precept
North West Leicestershire District Council,31UH,Finance,Financial Planning,FINPLA,Department for Communities & Local Government,A028518,12/07/2022,12/07/2022,3110908.00,Subsidy Receipts and Repayments
North West Leicestershire District Council,31UH,Finance,Financial Planning,FINPLA,The Office of the Police and Crime Commissioner for Leicestershire,A007096,12/07/2022,12/07/2022,934812.29,Precept
North West Leicestershire District Council,31UH,Finance,Financial Planning,FINPLA,Leicestershire County Council,A000950,12/07/2022,12/07/2022,5260161.00,Precept
North West Leicestershire District Council,31UH,Finance,Financial Planning,FINPLA,Leicestershire County Council,A000950,12/07/2022,12/07/2022,2261733.00,Precept
North West Leicestershire District Council,31UH,Housing,HRA Housing Management,HRAHM,Redacted-Personal Data,A000133,12/07/2022,12/07/2022,250.00,Mutual Exchange
North West Leicestershire District Council,31UH,Housing,HRA Housing Management,HRAHM,Redacted-Personal Data,A000133,12/07/2022,12/07/2022,250.00,Mutual Exchange
North West Leicestershire District Council,31UH,Legal & Democratic,Electoral & Land Charges,LDELC,Sweet & Maxwell Ltd,A001611,13/07/2022,13/07/2022,314.00,Books & Publications
North West Leicestershire District Council,31UH,Legal & Democratic,Electoral & Land Charges,LDELC,Sweet & Maxwell Ltd,A001611,13/07/2022,13/07/2022,314.00,Books & Publications
North West Leicestershire District Council,31UH,Housing,HRA Housing Management,HRAHM,James Andrews Recruitment Solutions,A036290,13/07/2022,13/07/2022,1116.75,Agency Staff
North West Leicestershire District Council,31UH,Legal & Democratic,Legal Services,LDLS,Browne Jacobson LLP,A042988,13/07/2022,13/07/2022,2428.00,Legal & Professional Services
North West Leicestershire District Council,31UH,Property Services,Property Commercial Lettings,PROPCL,Water Plus Limited,A044043,13/07/2022,13/07/2022,340.34,Water Charges (Metered)
North West Leicestershire District Council,31UH,Property Services,Property Commercial Lettings,PROPCL,Water Plus Limited,A044043,13/07/2022,13/07/2022,347.60,Water Charges (Metered)
North West Leicestershire District Council,31UH,Property Services,Property Commercial Lettings,PROPCL,Water Plus Limited,A044043,13/07/2022,13/07/2022,817.97,Water Charges (Metered)
North West Leicestershire District Council,31UH,Finance,Exchequer Services,EXCH,HM Revenues & Customs,A038465,13/07/2022,13/07/2022,635.00,Payment To Inland Revenue
North West Leicestershire District Council,31UH,Information Technology,ICT Services,ICT,EE Ltd (Airtime),A018592,13/07/2022,13/07/2022,1228.50,Mobile Telephones
North West Leicestershire District Council,31UH,Information Technology,ICT Services,ICT,EE Ltd (Airtime),A018592,13/07/2022,13/07/2022,6129.87,Mobile Telephones
North West Leicestershire District Council,31UH,Finance,Exchequer Services,EXCH,Comensura Limited,A036958,13/07/2022,13/07/2022,21396.26,Agency Staff
North West Leicestershire District Council,31UH,Street Management,Environment Transport,ENOT,Innovative Safety Systems Limited,A038664,13/07/2022,13/07/2022,2286.88,Repairs - Parts
North West Leicestershire District Council,31UH,Housing Repairs,HRA Housing Repairs & Maintenance,HRAHRM,Second Element Ltd,A046693,13/07/2022,13/07/2022,740.00,Legionella
North West Leicestershire District Council,31UH,Housing Repairs,HRA Housing Repairs & Maintenance,HRAHRM,Second Element Ltd,A046693,13/07/2022,13/07/2022,460.00,Legionella
North West Leicestershire District Council,31UH,Finance,Exchequer Services,EXCH,Click Travel Ltd,A044308,13/07/2022,13/07/2022,6556.23,Accomodation and Travel
North West Leicestershire District Council,31UH,Information Technology,ICT Services,ICT,Virgin Media Business,A035373,13/07/2022,13/07/2022,283.20,Homelessness Strategy
North West Leicestershire District Council,31UH,Housing Strategy,Community - Housing Strategy,HS,Jaylets Easy Living Ltd,A047534,13/07/2022,13/07/2022,520.00,Homelessness Strategy
North West Leicestershire District Council,31UH,Housing Repairs,HRA Housing Repairs & Maintenance,HRAHRM,Alliance Consulting Solutions Ltd,A043783,13/07/2022,13/07/2022,3930.00,Legal & Professional Services
North West Leicestershire District Council,31UH,Housing Repairs,HRA Housing Repairs & Maintenance,HRAHRM,Alliance Consulting Solutions Ltd,A043783,13/07/2022,13/07/2022,3010.00,Legal & Professional Services
North West Leicestershire District Council,31UH,Housing Repairs,HRA Housing Repairs & Maintenance,HRAHRM,Alliance Consulting Solutions Ltd,A043783,13/07/2022,13/07/2022,1275.00,Legal & Professional Services
North West Leicestershire District Council,31UH,Housing Repairs,HRA Housing Repairs & Maintenance,HRAHRM,Alliance Consulting Solutions Ltd,A043783,13/07/2022,13/07/2022,6400.00,Legal & Professional Services
North West Leicestershire District Council,31UH,Finance,Financial Planning,FINPLA,Sports & Leisure Management Ltd,A045556,13/07/2022,13/07/2022,-962.90,Payments To Contractor
North West Leicestershire District Council,31UH,Legal & Democratic,Legal Services,LDLS,Browne Jacobson LLP,A042988,20/07/2022,20/07/2022,1743.80,Legal & Professional Services
North West Leicestershire District Council,31UH,Property Services,Property Commercial Lettings,PROPCL,British Gas,A042590,20/07/2022,20/07/2022,342.10,Electricity
North West Leicestershire District Council,31UH,Planning & Development,Environment Planning Policy,EPP,Parker Jowitt Planning LTF T/A PJP Planning,A047497,20/07/2022,20/07/2022,1250.00,External Legal Fees & Advice
North West Leicestershire District Council,31UH,Finance,Exchequer Services,EXCH,Click Travel Ltd,A044308,20/07/2022,20/07/2022,5209.08,Accomodation and Travel
North West Leicestershire District Council,31UH,Property Services,Property Commercial Lettings,PROPCL,E.on Next,A047155,20/07/2022,20/07/2022,376.84,General Repairs
North West Leicestershire District Council,31UH,Economic Development,Business Focus Group,BFG,North West Leicestershire Shopmobility,A029258,20/07/2022,20/07/2022,2000.00,Shopmobility
North West Leicestershire District Council,31UH,Finance,Exchequer Services,EXCH,Comensura Limited,A036958,20/07/2022,20/07/2022,25697.18,Agency Staff
North West Leicestershire District Council,31UH,Finance,Exchequer Services,EXCH,HM Revenues & Customs,A038465,20/07/2022,20/07/2022,2676.71,Payment To Inland Revenue
North West Leicestershire District Council,31UH,Housing,HRA Housing Management,HRAHM,Severn Trent Water Limited,A001468,20/07/2022,20/07/2022,1741.32,Water Charges (Metered)
North West Leicestershire District Council,31UH,Housing,HRA Housing Management,HRAHM,PPG Architectural Coatings Ltd,A000876,20/07/2022,20/07/2022,2819.00,Internal Decorations
North West Leicestershire District Council,31UH,Housing,HRA Housing Management,HRAHM,Water Plus Limited,A044043,20/07/2022,20/07/2022,333.51,Water Charges (Metered)
North West Leicestershire District Council,31UH,Housing,HRA Housing Management,HRAHM,JLA Limited,A043639,20/07/2022,20/07/2022,282.00,Cleaning & Domestic Equipment
North West Leicestershire District Council,31UH,Housing,HRA Housing Management,HRAHM,JLA Limited,A043639,20/07/2022,20/07/2022,412.00,Cleaning & Domestic Equipment
North West Leicestershire District Council,31UH,Finance,Revenues,REVS,LCC Pensions of Residents in Care,A041800,20/07/2022,20/07/2022,2100.00,Energy Rebate
North West Leicestershire District Council,31UH,Street Management,Environment - Street Scene,ESS,Water Plus Limited,A044043,27/07/2022,27/07/2022,346.51,Water Charges (Metered)
North West Leicestershire District Council,31UH,Legal & Democratic,Electoral & Land Charges,LDELC,Royal Mail Group Plc,A001418,27/07/2022,27/07/2022,270.60,Postages
North West Leicestershire District Council,31UH,Legal & Democratic,Electoral & Land Charges,LDELC,SCI Print Limited,A028974,27/07/2022,27/07/2022,7757.15,External printing
North West Leicestershire District Council,31UH,Housing,HRA Housing Management,HRAHM,Redacted-Personal Data,A047552,27/07/2022,27/07/2022,1613.13,Under Occupancy Incentives
North West Leicestershire District Council,31UH,Housing,HRA Housing Management,HRAHM,JLA Limited,A043639,27/07/2022,27/07/2022,442.00,Cleaning & Domestic Equipment
North West Leicestershire District Council,31UH,Housing,HRA Housing Management,HRAHM,JLA Limited,A043639,27/07/2022,27/07/2022,302.00,Cleaning & Domestic Equipment
North West Leicestershire District Council,31UH,Finance,Exchequer Services,EXCH,Comensura Limited,A036958,27/07/2022,27/07/2022,25351.26,Agency Staff
North West Leicestershire District Council,31UH,Finance,Exchequer Services,EXCH,ESPO,A000958,21/07/2022,21/07/2022,9540.47,Gas
North West Leicestershire District Council,31UH,Finance,Exchequer Services,EXCH,Total Gas & Power,A033385,21/07/2022,21/07/2022,14919.76,Electricity
North West Leicestershire District Council,31UH,Street Management,Environment - Street Scene,ESS,Crowngate Construction Professional Building Services Ltd,A046501,06/07/2022,06/07/2022,11234.39,Contract Payments (Other) Ext
North West Leicestershire District Council,31UH,Finance,Financial Planning,FINPLA,Blaby District Council,A000180,06/07/2022,06/07/2022,95338.27,Disabled facilities grant
North West Leicestershire District Council,31UH,Housing Repairs,HRA Housing Repairs & Maintenance,HRAHRM,James Grace Associates,A045696,06/07/2022,06/07/2022,665.19,Agency Staff
North West Leicestershire District Council,31UH,Information Technology,ICT Services,ICT,Freedom Communications (UK) Ltd,A032826,06/07/2022,06/07/2022,800.00,Training Course
North West Leicestershire District Council,31UH,Planning & Development,Environment - Development Control,EDC,GHM Planning Limited,A034296,06/07/2022,06/07/2022,5381.50,Agency Staff
North West Leicestershire District Council,31UH,Planning & Development,Environment - Development Control,EDC,GHM Planning Limited,A034296,06/07/2022,06/07/2022,4233.00,Agency Staff
North West Leicestershire District Council,31UH,Planning & Development,Environment - Development Control,EDC,GHM Planning Limited,A034296,06/07/2022,06/07/2022,5155.00,Agency Staff
North West Leicestershire District Council,31UH,Property Services,Property Facilities Management,PROPFM,Second Element Ltd,A046693,06/07/2022,06/07/2022,350.00,Service Contracts
North West Leicestershire District Council,31UH,Street Management,Environment Parks,ENOP,Landscape Supply Company,A041669,06/07/2022,06/07/2022,607.42,Operational Purchases
North West Leicestershire District Council,31UH,Information Technology,ICT Services,ICT,Paygate Solutions Limited,A037426,06/07/2022,06/07/2022,1000.00,Contract Payments (Other) Ext
North West Leicestershire District Council,31UH,Street Management,Environment Waste Management,ENOWM,Logistics UK,A027981,06/07/2022,06/07/2022,1294.70,Training Course
North West Leicestershire District Council,31UH,Property Services,Property Facilities Management,PROPFM,Second Element Ltd,A046693,06/07/2022,06/07/2022,4318.12,Legionella
North West Leicestershire District Council,31UH,Corporate Director,Human Resources,HR,East Midlands Councils,A008942,06/07/2022,06/07/2022,505.00,Corporate Training
North West Leicestershire District Council,31UH,Planning & Development,Environment Planning Policy,EPP,Air Quality Consultants,A031783,06/07/2022,06/07/2022,2500.00,Consultants Fees
North West Leicestershire District Council,31UH,Neighbourhoods & Communities,N & C Community Safety,NACCS,ITUS Security Solutions Ltd,A047496,06/07/2022,06/07/2022,4410.00,Service Contracts
North West Leicestershire District Council,31UH,Information Technology,ICT Services,ICT,Civica Ltd,A021357,06/07/2022,06/07/2022,2960.00,Contract Payments (Other) Ext
North West Leicestershire District Council,31UH,Leisure & Culture,Sport & Physical Activity,SPA,Algeco UK Limited,A005413,06/07/2022,06/07/2022,505.72,Temporary Accomodation and Secure Storage
North West Leicestershire District Council,31UH,Corporate Director,Human Resources,HR,Leicestershire County Council,A000950,06/07/2022,06/07/2022,31652.00,Subscriptions
North West Leicestershire District Council,31UH,Information Technology,ICT Services,ICT,Phoenix Software Limited,A001298,06/07/2022,06/07/2022,1900.00,Admin Equipment - Hire/Rental
North West Leicestershire District Council,31UH,Planning & Development,Environment - Development Control,EDC,The Oyster Partnership Ltd,A032796,06/07/2022,06/07/2022,2164.50,External Legal Fees & Advice
North West Leicestershire District Council,31UH,Street Management,Environment Waste Management,ENOWM,Leicestershire County Council,A000950,06/07/2022,06/07/2022,62202.00,Trade Refuse Disposal Costs
North West Leicestershire District Council,31UH,Street Management,Environment Waste Management,ENOWM,WasteCare Group Ltd,A041331,06/07/2022,06/07/2022,649.50,Hire Of Operational Equipment
North West Leicestershire District Council,31UH,Leisure & Culture,Sport & Physical Activity,SPA,Boxercise4Health,A047315,06/07/2022,06/07/2022,300.00,Health and Wellbeing Coaching Sessions
North West Leicestershire District Council,31UH,Property Services,Property Commercial Lettings,PROPCL,AES Sustainability Consultants Limited,A047281,06/07/2022,06/07/2022,2300.00,Legal & Professional Services
North West Leicestershire District Council,31UH,Planning & Development,Environment - Development Control,EDC,The Oyster Partnership Ltd,A032796,06/07/2022,06/07/2022,2164.50,External Legal Fees & Advice
North West Leicestershire District Council,31UH,Planning & Development,Environment - Development Control,EDC,The Oyster Partnership Ltd,A032796,06/07/2022,06/07/2022,2164.50,External Legal Fees & Advice
North West Leicestershire District Council,31UH,Housing Repairs,HRA Housing Repairs & Maintenance,HRAHRM,Alliance Contracting Solutions Ltd,A043325,06/07/2022,06/07/2022,1268.90,General Repairs
North West Leicestershire District Council,31UH,Information Technology,ICT Services,ICT,Alliance Contracting Solutions Ltd,A043325,06/07/2022,06/07/2022,19400.57,General repairs
North West Leicestershire District Council,31UH,Street Management,Environment Waste Management,ENOWM,Glasdon UK Ltd,A000671,06/07/2022,06/07/2022,1098.24,Operational Equipment
North West Leicestershire District Council,31UH,Leisure & Culture,Cultural Services Arts & Events,CULTEV,Field and Lawn Ltd,A042594,06/07/2022,06/07/2022,10583.00,Coalville Christmas Decorations
North West Leicestershire District Council,31UH,Housing,HRA Housing Management,HRAHM,Aareon UK Ltd,A045197,06/07/2022,06/07/2022,1740.00,Contract Payments (Other) Ext
North West Leicestershire District Council,31UH,Housing,HRA Housing Management,HRAHM,Aareon UK Ltd,A045197,06/07/2022,06/07/2022,3045.00,Contract Payments (Other) Ext
North West Leicestershire District Council,31UH,Housing,HRA Housing Management,HRAHM,Aareon UK Ltd,A045197,06/07/2022,06/07/2022,435.00,Contract Payments (Other) Ext
North West Leicestershire District Council,31UH,Housing,HRA Housing Management,HRAHM,Aareon UK Ltd,A045197,06/07/2022,06/07/2022,1781.20,Contract Payments (Other) Ext
North West Leicestershire District Council,31UH,Housing Repairs,HRA Housing Repairs & Maintenance,HRAHRM,Aareon UK Ltd,A045197,06/07/2022,06/07/2022,435.00,Contract Payments (Other) Ext
North West Leicestershire District Council,31UH,Housing Repairs,HRA Housing Repairs & Maintenance,HRAHRM,James Grace Associates,A045696,06/07/2022,06/07/2022,665.19,Agency Staff
North West Leicestershire District Council,31UH,Housing Repairs,HRA Housing Repairs & Maintenance,HRAHRM,James Grace Associates,A045696,06/07/2022,06/07/2022,412.88,Agency Staff
North West Leicestershire District Council,31UH,Street Management,Environment Transport,ENOT,Mertrux Ltd,A035291,06/07/2022,06/07/2022,658.91,Vehicle Parts and Maintenance
North West Leicestershire District Council,31UH,Street Management,Environment Waste Management,ENOWM,Elite Training Solutions,A042233,06/07/2022,06/07/2022,1500.00,Training Course
North West Leicestershire District Council,31UH,Housing,HRA Housing Management,HRAHM,exi,A045557,06/07/2022,06/07/2022,8542.86,Legal & Professional Services
North West Leicestershire District Council,31UH,Corporate Director,Corporate Director,CORDI,IDP (Central) Limited,A047366,06/07/2022,06/07/2022,2120.00,Contract Payments (Other) Ext
North West Leicestershire District Council,31UH,Street Management,Environment Transport,ENOT,Watson Fuels,A047235,06/07/2022,06/07/2022,37546.64,Diesel
North West Leicestershire District Council,31UH,Housing Repairs,HRA Housing Repairs & Maintenance,HRAHRM,Alliance Consulting Solutions Ltd,A043783,06/07/2022,06/07/2022,2070.00,Legal & Professional Services
North West Leicestershire District Council,31UH,Economic Development,Business Focus Group,BFG,County Drains Leicester Ltd,A024295,06/07/2022,06/07/2022,1305.00,Legal & Professional Services
North West Leicestershire District Council,31UH,Housing,HRA Performance & Business Support,HRAPBS,Print Search Chester Limited,A036087,06/07/2022,06/07/2022,430.00,Payment Cards
North West Leicestershire District Council,31UH,Street Management,Environment Transport,ENOT,Westbury Industrial Supplies Limited,A009933,06/07/2022,06/07/2022,300.00,Protective Clothing
North West Leicestershire District Council,31UH,Street Management,Environment Waste Management,ENOWM,Glasdon UK Ltd,A000671,06/07/2022,06/07/2022,1064.00,Operational Equipment
North West Leicestershire District Council,31UH,Housing Repairs,HRA Housing Repairs & Maintenance,HRAHRM,Alliance Contracting Solutions Ltd,A043325,06/07/2022,06/07/2022,14125.40,General Repairs
North West Leicestershire District Council,31UH,Housing Repairs,HRA Housing Repairs & Maintenance,HRAHRM,Alliance Contracting Solutions Ltd,A043325,06/07/2022,06/07/2022,25959.58,General Repairs
North West Leicestershire District Council,31UH,Environmental Health,Environmental Health & Licensing,EEHL,CIEH,A027750,06/07/2022,06/07/2022,613.00,Training Course
North West Leicestershire District Council,31UH,Economic Development,Business Focus Group,BFG,Place Informatics Ltd,A047498,06/07/2022,06/07/2022,3295.00,Town Centre & Area Regeneration - Initia
North West Leicestershire District Council,31UH,Planning & Development,Environment Planning Policy,EPP,Parker Jowitt Planning LTF T/A PJP Planning,A047497,06/07/2022,06/07/2022,1250.00,External Legal Fees & Advice
North West Leicestershire District Council,31UH,Property Services,Property Commercial Lettings,PROPCL,Fire Proof Ltd,A039911,06/07/2022,06/07/2022,1524.15,General Repairs
North West Leicestershire District Council,31UH,Property Services,Property Facilities Management,PROPFM,Mewies Engineering Consultants Ltd,A043524,06/07/2022,06/07/2022,400.00,Consultants Fees
North West Leicestershire District Council,31UH,Property Services,Property Facilities Management,PROPFM,Mewies Engineering Consultants Ltd,A043524,06/07/2022,06/07/2022,400.00,Service Contracts
North West Leicestershire District Council,31UH,Neighbourhoods & Communities,N & C Community Safety,NACCS,Amazon Payments UK Ltd,A036743,06/07/2022,06/07/2022,299.90,PCC Early Intervention Expenditure
North West Leicestershire District Council,31UH,Economic Development,Business Focus Group,BFG,Perfect Circle JV Ltd,A046694,06/07/2022,06/07/2022,39963.04,Legal & Professional Services
North West Leicestershire District Council,31UH,Housing,HRA Housing Management,HRAHM,Coalville Yellow Cabs,A041983,06/07/2022,06/07/2022,291.50,Public Transport
North West Leicestershire District Council,31UH,Housing Repairs,HRA Housing Repairs & Maintenance,HRAHRM,James Grace Associates,A045696,06/07/2022,06/07/2022,275.25,Agency Staff
North West Leicestershire District Council,31UH,Housing Repairs,HRA Housing Repairs & Maintenance,HRAHRM,James Grace Associates,A045696,06/07/2022,06/07/2022,665.19,Agency Staff
North West Leicestershire District Council,31UH,Planning & Development,Environment Planning Policy,EPP,Clearlead Consulting Ltd,A044888,06/07/2022,06/07/2022,2025.00,Consultants Fees
North West Leicestershire District Council,31UH,Housing,HRA Housing Management,HRAHM,exi,A045557,06/07/2022,06/07/2022,8542.86,Legal & Professional Services
North West Leicestershire District Council,31UH,Property Services,Property Commercial Lettings,PROPCL,John Merison BMC Ltd,A001092,06/07/2022,06/07/2022,3488.14,General Repairs
North West Leicestershire District Council,31UH,Street Management,Environment Transport,ENOT,Merthyr Tidfil Car Auctions Ltd T/A MMA,A047516,06/07/2022,06/07/2022,3850.00,Items To Be Leased
North West Leicestershire District Council,31UH,Property Services,Property Facilities Management,PROPFM,John Merison BMC Ltd,A001092,06/07/2022,06/07/2022,496.87,General Repairs
North West Leicestershire District Council,31UH,Street Management,Environment Transport,ENOT,Safety-Kleen Uk Ltd,A001431,06/07/2022,06/07/2022,529.51,Consumable Materials
North West Leicestershire District Council,31UH,Street Management,Environment Transport,ENOT,Mertrux Ltd,A035291,06/07/2022,06/07/2022,322.33,Vehicle Parts and Maintenance
North West Leicestershire District Council,31UH,Street Management,Environment Transport,ENOT,Geesink Norba Limited,A017895,06/07/2022,06/07/2022,1840.12,Waste handling Equipment
North West Leicestershire District Council,31UH,Street Management,Environment Transport,ENOT,Watson Fuels,A047235,06/07/2022,06/07/2022,33812.31,Diesel
North West Leicestershire District Council,31UH,Planning & Development,Environment - Development Control,EDC,United Utilities Water Ltd,A047240,13/07/2022,13/07/2022,518.87,River Mease Expenditure
North West Leicestershire District Council,31UH,Housing,HRA Housing Management,HRAHM,Fretwell Print and Design Limited,A045984,13/07/2022,13/07/2022,728.00,Annual Report To Tenants
North West Leicestershire District Council,31UH,Street Management,Environment Transport,ENOT,Mertrux Ltd,A035291,13/07/2022,13/07/2022,273.13,Vehicle Parts and Maintenance
North West Leicestershire District Council,31UH,Street Management,Environment Transport,ENOT,WasteParts UK Limited,A036236,13/07/2022,13/07/2022,1162.96,Vehicle Parts and Maintenance
North West Leicestershire District Council,31UH,Street Management,Environment Transport,ENOT,Mobile Hydraulics Ltd,A001131,13/07/2022,13/07/2022,764.28,Vehicle Parts and Maintenance
North West Leicestershire District Council,31UH,Street Management,Environment Transport,ENOT,HGV Direct Ltd,A046956,13/07/2022,13/07/2022,350.72,Vehicle Parts and Maintenance
North West Leicestershire District Council,31UH,Street Management,Environment Transport,ENOT,HGV Direct Ltd,A046956,13/07/2022,13/07/2022,279.50,Vehicle Parts and Maintenance
North West Leicestershire District Council,31UH,Street Management,Environment Transport,ENOT,HGV Direct Ltd,A046956,13/07/2022,13/07/2022,789.15,Vehicle Parts and Maintenance
North West Leicestershire District Council,31UH,Information Technology,ICT Services,ICT,Phoenix Software Limited,A001298,13/07/2022,13/07/2022,1900.00,Admin Equipment - Hire/Rental
North West Leicestershire District Council,31UH,Street Management,Environment Waste Management,ENOWM,Straight Plc,A024906,13/07/2022,13/07/2022,1990.80,General Materials
North West Leicestershire District Council,31UH,Property Services,Property Facilities Management,PROPFM,Second Element Ltd,A046693,13/07/2022,13/07/2022,815.00,Service Contracts
North West Leicestershire District Council,31UH,Street Management,Environment Waste Management,ENOWM,TubbyTone Limited TA TubbyPrint,A047161,13/07/2022,13/07/2022,1000.00,Publicity & Promotion
North West Leicestershire District Council,31UH,Information Technology,ICT Services,ICT,Phoenix Software Limited,A001298,13/07/2022,13/07/2022,950.00,Administrative Equipment
North West Leicestershire District Council,31UH,Corporate Director,Human Resources,HR,Starfish,A047178,13/07/2022,13/07/2022,19674.00,Interim Support
North West Leicestershire District Council,31UH,Property Services,Property Commercial Lettings,PROPCL,Lift & Engineering Services,A046390,13/07/2022,13/07/2022,703.86,General Repairs
North West Leicestershire District Council,31UH,Corporate Director,Human Resources,HR,Wider Plan Ltd,A043948,13/07/2022,13/07/2022,873.00,Staff Benefit Scheme
North West Leicestershire District Council,31UH,Planning & Development,Environment - Development Control,EDC,Edenvale Young,A045845,13/07/2022,13/07/2022,800.00,River Mease Expenditure
North West Leicestershire District Council,31UH,Leisure & Culture,Cultural Services Arts & Events,CULTEV,Leicester Shire Promotions Ltd,A028765,13/07/2022,13/07/2022,2500.00,Special Events
North West Leicestershire District Council,31UH,Information Technology,ICT Services,ICT,dotdigital,A037038,13/07/2022,13/07/2022,308.00,Admin Equipment - Maintenance
North West Leicestershire District Council,31UH,Leisure & Culture,Cultural Services Arts & Events,CULTEV,Global Tourism Solutions (UK) Limited,A038189,13/07/2022,13/07/2022,2250.00,Special Events
North West Leicestershire District Council,31UH,Planning & Development,Environment - Development Control,EDC,Wildwood Forestry,A046478,13/07/2022,13/07/2022,3413.05,River Mease Expenditure
North West Leicestershire District Council,31UH,Street Management,Environment Transport,ENOT,Westbury Industrial Supplies Limited,A009933,13/07/2022,13/07/2022,397.80,Protective Clothing
North West Leicestershire District Council,31UH,Planning & Development,Environment - Development Control,EDC,Trent Rivers Trust,A041633,13/07/2022,13/07/2022,14337.00,River Mease DCS Scheme Monitoring
North West Leicestershire District Council,31UH,Planning & Development,Environment - Development Control,EDC,Trent Rivers Trust,A041633,13/07/2022,13/07/2022,11282.00,River Mease DCS Scheme Monitoring
North West Leicestershire District Council,31UH,Planning & Development,Environment - Development Control,EDC,Trent Rivers Trust,A041633,13/07/2022,13/07/2022,13117.00,River Mease DCS Scheme Monitoring
North West Leicestershire District Council,31UH,Corporate Director,Corporate Director,CORDI,Richards Design Partnership,A047399,13/07/2022,13/07/2022,3000.00,Contract Payments (Other) Ext
North West Leicestershire District Council,31UH,Housing Repairs,HRA Housing Repairs & Maintenance,HRAHRM,Alliance Contracting Solutions Ltd,A043325,13/07/2022,13/07/2022,33961.14,General Repairs
North West Leicestershire District Council,31UH,Information Technology,ICT Services,ICT,Multidata (Europe) Ltd,A032931,13/07/2022,13/07/2022,816.00,Computer Software Maintenance
North West Leicestershire District Council,31UH,Finance,Head of Finance,HOFI,Charnwood Borough Council,A000323,13/07/2022,13/07/2022,2728.57,Consultants Fees
North West Leicestershire District Council,31UH,Housing Repairs,HRA Housing Repairs & Maintenance,HRAHRM,Alliance Contracting Solutions Ltd,A043325,13/07/2022,13/07/2022,3010.00,General Repairs
North West Leicestershire District Council,31UH,Corporate Director,Corporate Director,CORDI,IDP (Central) Limited,A047366,13/07/2022,13/07/2022,864.00,Contract Payments (Other) Ext
North West Leicestershire District Council,31UH,Housing,HRA Housing Management,HRAHM,James Andrews Recruitment Solutions,A036290,13/07/2022,13/07/2022,1109.31,Agency Staff
North West Leicestershire District Council,31UH,Housing Repairs,HRA Housing Repairs & Maintenance,HRAHRM,Hays Human Resources,A024378,13/07/2022,13/07/2022,740.00,Agency Staff
North West Leicestershire District Council,31UH,Housing Repairs,HRA Housing Repairs & Maintenance,HRAHRM,Hays Human Resources,A024378,13/07/2022,13/07/2022,925.00,Agency Staff
North West Leicestershire District Council,31UH,Housing Repairs,HRA Housing Repairs & Maintenance,HRAHRM,Hays Human Resources,A024378,13/07/2022,13/07/2022,925.00,Agency Staff
North West Leicestershire District Council,31UH,Housing Repairs,HRA Housing Repairs & Maintenance,HRAHRM,Hays Human Resources,A024378,13/07/2022,13/07/2022,900.00,Agency Staff
North West Leicestershire District Council,31UH,Housing Repairs,HRA Housing Repairs & Maintenance,HRAHRM,Hays Human Resources,A024378,13/07/2022,13/07/2022,925.00,Agency Staff
North West Leicestershire District Council,31UH,Housing Repairs,HRA Housing Repairs & Maintenance,HRAHRM,Hays Human Resources,A024378,13/07/2022,13/07/2022,900.00,Agency Staff
North West Leicestershire District Council,31UH,Housing Repairs,HRA Housing Repairs & Maintenance,HRAHRM,Hays Human Resources,A024378,13/07/2022,13/07/2022,925.00,Agency Staff
North West Leicestershire District Council,31UH,Housing Repairs,HRA Housing Repairs & Maintenance,HRAHRM,Hays Human Resources,A024378,13/07/2022,13/07/2022,925.00,Agency Staff
North West Leicestershire District Council,31UH,Housing Repairs,HRA Housing Repairs & Maintenance,HRAHRM,Hays Human Resources,A024378,13/07/2022,13/07/2022,925.00,Agency Staff
North West Leicestershire District Council,31UH,Housing Repairs,HRA Housing Repairs & Maintenance,HRAHRM,Hays Human Resources,A024378,13/07/2022,13/07/2022,925.00,Agency Staff
North West Leicestershire District Council,31UH,Housing Repairs,HRA Housing Repairs & Maintenance,HRAHRM,Hays Human Resources,A024378,13/07/2022,13/07/2022,740.00,Agency Staff
North West Leicestershire District Council,31UH,Housing Repairs,HRA Housing Repairs & Maintenance,HRAHRM,Hays Human Resources,A024378,13/07/2022,13/07/2022,740.00,Agency Staff
North West Leicestershire District Council,31UH,Housing Repairs,HRA Housing Repairs & Maintenance,HRAHRM,Hays Human Resources,A024378,13/07/2022,13/07/2022,925.00,Agency Staff
North West Leicestershire District Council,31UH,Property Services,Property Commercial Lettings,PROPCL,Lambert Smith Hampton,A020974,07/07/2022,07/07/2022,6500.00,Management Company- Unit rentals
North West Leicestershire District Council,31UH,Housing,HRA Older Persons Service,HRAOPS,Tunstall Healthcare (UK) Limited,A001701,13/07/2022,13/07/2022,590.50,Alarm System Telephones
North West Leicestershire District Council,31UH,Housing,HRA Older Persons Service,HRAOPS,Tunstall Healthcare (UK) Limited,A001701,13/07/2022,13/07/2022,590.50,Alarm System Telephones
North West Leicestershire District Council,31UH,Housing,HRA Older Persons Service,HRAOPS,Tunstall Healthcare (UK) Limited,A001701,13/07/2022,13/07/2022,590.50,Alarm System Telephones
North West Leicestershire District Council,31UH,Information Technology,ICT Services,ICT,Cable & Wireless Worldwide,A038473,13/07/2022,13/07/2022,1857.36,Admin Equipment - Maintenance
North West Leicestershire District Council,31UH,Planning & Development,Environment - Development Control,EDC,Ilex Tree Services,A046556,13/07/2022,13/07/2022,1796.80,External Legal Fees & Advice
North West Leicestershire District Council,31UH,Planning & Development,Environment - Development Control,EDC,Jonathan Gaynor Planning and Enforcement Services,A047213,13/07/2022,13/07/2022,1365.00,External Legal Fees & Advice
North West Leicestershire District Council,31UH,Planning & Development,Environment - Development Control,EDC,RAS Town Planning Services,A045293,13/07/2022,13/07/2022,3003.00,External Legal Fees & Advice
North West Leicestershire District Council,31UH,Planning & Development,Environment - Development Control,EDC,Rob Thompson Urbanism Limited,A045846,13/07/2022,13/07/2022,2625.00,Consultants Fees
North West Leicestershire District Council,31UH,Planning & Development,Environment - Development Control,EDC,Rob Thompson Urbanism Limited,A045846,13/07/2022,13/07/2022,4845.15,Consultants Fees
North West Leicestershire District Council,31UH,Housing,HRA Performance & Business Support,HRAPBS,Western Power Distribution,A038499,13/07/2022,13/07/2022,1440.89,Contract Payments (Dws) Ext
North West Leicestershire District Council,31UH,Information Technology,ICT Services,ICT,Freedom Communications (UK) Ltd,A032826,13/07/2022,13/07/2022,531.22,Telephones
North West Leicestershire District Council,31UH,Environmental Health,Environmental Health & Licensing,EEHL,Tennals Pest Control,A045705,13/07/2022,13/07/2022,1687.00,External Contractor Payments
North West Leicestershire District Council,31UH,Property Services,Property Commercial Lettings,PROPCL,Coalville Cleaning Services,A003037,13/07/2022,13/07/2022,821.00,Contract Cleaning
North West Leicestershire District Council,31UH,Property Services,Property Commercial Lettings,PROPCL,Coalville Cleaning Services,A003037,13/07/2022,13/07/2022,985.20,Contract Cleaning
North West Leicestershire District Council,31UH,Property Services,Property Facilities Management,PROPFM,Regarde Security Ltd,A013049,13/07/2022,13/07/2022,310.40,Security Services
North West Leicestershire District Council,31UH,Property Services,Property Facilities Management,PROPFM,Regarde Security Ltd,A013049,13/07/2022,13/07/2022,630.00,Building Security
North West Leicestershire District Council,31UH,Property Services,Property Facilities Management,PROPFM,Regarde Security Ltd,A013049,13/07/2022,13/07/2022,1008.80,Contract Cleaning
North West Leicestershire District Council,31UH,Information Technology,ICT Services,ICT,Freedom Communications (UK) Ltd,A032826,13/07/2022,13/07/2022,520.22,Telephones
North West Leicestershire District Council,31UH,Housing,HRA Performance & Business Support,HRAPBS,Alliance Contracting Solutions Ltd,A043325,13/07/2022,13/07/2022,33052.30,Contract Payments (Dws) Ext
North West Leicestershire District Council,31UH,Information Technology,ICT Services,ICT,Six Degrees Technology Group Ltd,A044205,13/07/2022,13/07/2022,35075.02,Admin Equipment - Maintenance
North West Leicestershire District Council,31UH,Information Technology,ICT Services,ICT,Cuttlefish Multimedia Ltd,A032102,13/07/2022,13/07/2022,1810.00,Website Maintenance
North West Leicestershire District Council,31UH,Street Management,Environment Transport,ENOT,EPT Services,A039764,13/07/2022,13/07/2022,759.02,Protective Clothing
North West Leicestershire District Council,31UH,Chief Exec,Chief Executive,CHEX,Charnwood Borough Council,A000323,13/07/2022,13/07/2022,1950.00,Consultants Fees
North West Leicestershire District Council,31UH,Chief Exec,Chief Executive,CHEX,Charnwood Borough Council,A000323,13/07/2022,13/07/2022,11105.00,Consultants Fees
North West Leicestershire District Council,31UH,Legal & Democratic,Member Services,LDMS,The Association of Electoral Administrators Ltd,A033402,13/07/2022,13/07/2022,1666.68,Training Course
North West Leicestershire District Council,31UH,Housing,HRA Older Persons Service,HRAOPS,Tunstall Healthcare (UK) Limited,A001701,13/07/2022,13/07/2022,600.00,Alarm System Telephones
North West Leicestershire District Council,31UH,Street Management,Environment Transport,ENOT,EPT Services,A039764,13/07/2022,13/07/2022,1193.01,Protective Clothing
North West Leicestershire District Council,31UH,Street Management,Environment - Street Scene,ESS,Midlands Co-operative  Ltd,A036454,13/07/2022,13/07/2022,500.00,Welfare Funerals
North West Leicestershire District Council,31UH,Environmental Health,Environmental Health & Licensing,EEHL,Animal Care Services Limited,A046488,13/07/2022,13/07/2022,2081.65,Stray Dog Service
North West Leicestershire District Council,31UH,Street Management,Environment Transport,ENOT,Anderson Commercials Limited,A033469,13/07/2022,13/07/2022,685.00,Mot testing
North West Leicestershire District Council,31UH,Property Services,Property Facilities Management,PROPFM,Regarde Security Ltd,A013049,13/07/2022,13/07/2022,1003.20,Building Security
North West Leicestershire District Council,31UH,Property Services,Property Facilities Management,PROPFM,Regarde Security Ltd,A013049,13/07/2022,13/07/2022,310.40,Building Security
North West Leicestershire District Council,31UH,Housing,HRA Performance & Business Support,HRAPBS,Home Connections Lettings Ltd,A044386,13/07/2022,13/07/2022,750.00,Contract Payments (Other) Ext
North West Leicestershire District Council,31UH,Housing,HRA Performance & Business Support,HRAPBS,Home Connections Lettings Ltd,A044386,13/07/2022,13/07/2022,1500.00,Contract Payments (Other) Ext
North West Leicestershire District Council,31UH,Housing,HRA Performance & Business Support,HRAPBS,Home Connections Lettings Ltd,A044386,13/07/2022,13/07/2022,750.00,Contract Payments (Other) Ext
North West Leicestershire District Council,31UH,Housing,HRA Performance & Business Support,HRAPBS,Home Connections Lettings Ltd,A044386,13/07/2022,13/07/2022,750.00,Contract Payments (Other) Ext
North West Leicestershire District Council,31UH,Housing,HRA Performance & Business Support,HRAPBS,Home Connections Lettings Ltd,A044386,13/07/2022,13/07/2022,750.00,Contract Payments (Other) Ext
North West Leicestershire District Council,31UH,Property Services,Property Commercial Lettings,PROPCL,Bell Decorating Group Limited,A044051,13/07/2022,13/07/2022,796.00,General Repairs
North West Leicestershire District Council,31UH,Property Services,Property Commercial Lettings,PROPCL,Urban Planters Leicestershire (limited),A003371,13/07/2022,13/07/2022,552.50,Internal Decorations
North West Leicestershire District Council,31UH,Property Services,Property Commercial Lettings,PROPCL,Bell Decorating Group Limited,A044051,13/07/2022,13/07/2022,6831.74,General Repairs
North West Leicestershire District Council,31UH,Street Management,Environment Transport,ENOT,J F Lloyd & Sons,A000991,13/07/2022,13/07/2022,300.00,Hire Of Operational Equipment
North West Leicestershire District Council,31UH,Street Management,Environment Transport,ENOT,J F Lloyd & Sons,A000991,13/07/2022,13/07/2022,300.00,Hire Of Operational Equipment
North West Leicestershire District Council,31UH,Information Technology,ICT Services,ICT,ACS Systems (UK) Ltd T/a ACS Office Solutions,A043447,13/07/2022,13/07/2022,351.00,Administrative Equipment
North West Leicestershire District Council,31UH,Street Management,Environment Waste Management,ENOWM,Automotive Transport Training Ltd,A046541,13/07/2022,13/07/2022,386.50,Training Course
North West Leicestershire District Council,31UH,Street Management,Environment Transport,ENOT,JB Tool Hire Ltd,A011490,13/07/2022,13/07/2022,1200.00,Hire Of Transport
North West Leicestershire District Council,31UH,Street Management,Environment Waste Management,ENOWM,WEBASPX Limited,A035913,13/07/2022,13/07/2022,2484.00,Consultants Fees
North West Leicestershire District Council,31UH,Finance,Financial Planning,FINPLA,Sports & Leisure Management Ltd,A045556,13/07/2022,13/07/2022,97446.60,Payments To Contractor
North West Leicestershire District Council,31UH,Information Technology,ICT Services,ICT,Freedom Communications (UK) Ltd,A032826,13/07/2022,13/07/2022,15250.00,Telecommunications and Data Services
North West Leicestershire District Council,31UH,Street Management,Environment Transport,ENOT,Parkers The Parts People,A044935,13/07/2022,13/07/2022,309.99,Consumable Materials
North West Leicestershire District Council,31UH,Street Management,Environment Transport,ENOT,Refuse Vehicle Solutions Ltd,A047317,13/07/2022,13/07/2022,4180.00,Vehicle Parts and Maintenance
North West Leicestershire District Council,31UH,Street Management,Environment Transport,ENOT,Enterprise Flex-E-Rent,A046516,13/07/2022,13/07/2022,1129.40,Hire Of Transport
North West Leicestershire District Council,31UH,Street Management,Environment Transport,ENOT,Second 2 None,A031408,13/07/2022,13/07/2022,1320.00,Washing Down of Vehicles
North West Leicestershire District Council,31UH,Street Management,Environment Transport,ENOT,HGV Direct Ltd,A046956,13/07/2022,13/07/2022,286.39,Consumable Materials
North West Leicestershire District Council,31UH,Housing Repairs,HRA Housing Repairs & Maintenance,HRAHRM,HQN Ltd,A007983,13/07/2022,13/07/2022,375.00,Training Course
North West Leicestershire District Council,31UH,Housing,HRA Performance & Business Support,HRAPBS,ARCH,A038448,13/07/2022,13/07/2022,2500.00,Subscriptions
North West Leicestershire District Council,31UH,Housing Repairs,HRA Housing Repairs & Maintenance,HRAHRM,Terratruck Distribution Services Ltd,A001648,13/07/2022,13/07/2022,751.50,Operational Equipment
North West Leicestershire District Council,31UH,Housing,HRA Performance & Business Support,HRAPBS,Housemark Ltd,A033843,13/07/2022,13/07/2022,7830.00,Subscriptions
North West Leicestershire District Council,31UH,Planning & Development,Environment - Development Control,EDC,Jeremy Benn Associates Ltd (t/a JBA Consulting),A044010,13/07/2022,13/07/2022,1705.00,Consultants Fees
North West Leicestershire District Council,31UH,Planning & Development,Environment Planning Policy,EPP,RICS,A033386,13/07/2022,13/07/2022,5120.00,BCIS Review
North West Leicestershire District Council,31UH,Housing Repairs,HRA Housing Repairs & Maintenance,HRAHRM,Castle Damp & Timber Specialists Limited,A046384,13/07/2022,13/07/2022,2170.00,Legal & Professional Services
North West Leicestershire District Council,31UH,Street Management,Environment Transport,ENOT,Geesink Norba Limited,A017895,13/07/2022,13/07/2022,1801.47,Waste handling Equipment
North West Leicestershire District Council,31UH,Housing Repairs,HRA Housing Repairs & Maintenance,HRAHRM,James Grace Associates,A045696,13/07/2022,13/07/2022,665.19,Agency Staff
North West Leicestershire District Council,31UH,Housing Repairs,HRA Housing Repairs & Maintenance,HRAHRM,Keith Cook Training Services,A027792,13/07/2022,13/07/2022,523.00,Training Course
North West Leicestershire District Council,31UH,Housing Repairs,HRA Housing Repairs & Maintenance,HRAHRM,Alliance Consulting Solutions Ltd,A043783,13/07/2022,13/07/2022,868.80,Legal & Professional Services
North West Leicestershire District Council,31UH,Housing Repairs,HRA Housing Repairs & Maintenance,HRAHRM,Keith Cook Training Services,A027792,13/07/2022,13/07/2022,523.00,Training Course
North West Leicestershire District Council,31UH,Housing Repairs,HRA Housing Repairs & Maintenance,HRAHRM,Alliance Consulting Solutions Ltd,A043783,13/07/2022,13/07/2022,600.00,Legal & Professional Services
North West Leicestershire District Council,31UH,Legal & Democratic,Electoral & Land Charges,LDELC,Leicestershire County Council,A027423,13/07/2022,13/07/2022,2529.00,LCC Search Fees
North West Leicestershire District Council,31UH,Corporate Director,Human Resources,HR,Mr Lee Westbury,A043140,13/07/2022,13/07/2022,1440.00,Training Course
North West Leicestershire District Council,31UH,Street Management,Environment Transport,ENOT,J F Lloyd & Sons,A000991,13/07/2022,13/07/2022,300.00,Hire Of Operational Equipment
North West Leicestershire District Council,31UH,Street Management,Environment Transport,ENOT,J F Lloyd & Sons,A000991,13/07/2022,13/07/2022,390.00,Hire Of Operational Equipment
North West Leicestershire District Council,31UH,Street Management,Environment Transport,ENOT,Selby's Garage (Woodhouse) Ltd,A044011,13/07/2022,13/07/2022,378.29,Hire Of Operational Equipment
North West Leicestershire District Council,31UH,Street Management,Environment Transport,ENOT,Michelin Tyre Plc,A046127,13/07/2022,13/07/2022,1495.20,Vehicle Parts and Maintenance
North West Leicestershire District Council,31UH,Property Services,Property Commercial Lettings,PROPCL,Pitney Bowes,A037177,13/07/2022,13/07/2022,1495.48,Postages
North West Leicestershire District Council,31UH,Street Management,Environment Transport,ENOT,HGV Direct Ltd,A046956,13/07/2022,13/07/2022,435.43,Consumable Materials
North West Leicestershire District Council,31UH,Housing Repairs,HRA Housing Repairs & Maintenance,HRAHRM,Arco Limited,A000068,13/07/2022,13/07/2022,579.20,Consumable Materials
North West Leicestershire District Council,31UH,Housing Repairs,HRA Housing Repairs & Maintenance,HRAHRM,Keith Cook Training Services,A027792,13/07/2022,13/07/2022,523.00,Training Course
North West Leicestershire District Council,31UH,Housing Repairs,HRA Housing Repairs & Maintenance,HRAHRM,Keith Cook Training Services,A027792,13/07/2022,13/07/2022,523.00,Training Course
North West Leicestershire District Council,31UH,Street Management,Environment - Street Scene,ESS,Cuckoo Gap Limited,A000438,20/07/2022,20/07/2022,975.00,Operational Equipment
North West Leicestershire District Council,31UH,Chief Exec,Chief Executive,CHEX,Zmapping Ltd,A047535,20/07/2022,20/07/2022,3750.00,PRE - Public Realm Projects
North West Leicestershire District Council,31UH,Street Management,Environment Transport,ENOT,Watson Fuels,A047235,20/07/2022,20/07/2022,36605.08,Diesel
North West Leicestershire District Council,31UH,Property Services,Property Commercial Lettings,PROPCL,AES Sustainability Consultants Limited,A047281,20/07/2022,20/07/2022,4875.00,Legal & Professional Services
North West Leicestershire District Council,31UH,Finance,Financial Planning,FINPLA,Readings Property Group Ltd,A045486,20/07/2022,20/07/2022,1500.00,Legal & Professional Services
North West Leicestershire District Council,31UH,Property Services,Property Facilities Management,PROPFM,Ksa Consulting Engineers Ltd,A008757,20/07/2022,20/07/2022,2000.00,General Repairs
North West Leicestershire District Council,31UH,Housing,HRA Performance & Business Support,HRAPBS,Experian Ltd,A009242,20/07/2022,20/07/2022,555.50,Computing
North West Leicestershire District Council,31UH,Planning & Development,Environment - Development Control,EDC,The Oyster Partnership Ltd,A032796,20/07/2022,20/07/2022,2164.50,External Legal Fees & Advice
North West Leicestershire District Council,31UH,Corporate Director,Human Resources,HR,Charnwood Borough Council,A000323,20/07/2022,20/07/2022,671.00,Corporate Training
North West Leicestershire District Council,31UH,Corporate Director,Human Resources,HR,Charnwood Borough Council,A000323,20/07/2022,20/07/2022,4550.00,Corporate Training
North West Leicestershire District Council,31UH,Housing,HRA Performance & Business Support,HRAPBS,Alliance Contracting Solutions Ltd,A043325,20/07/2022,20/07/2022,66680.58,Contract Payments (Dws) Ext
North West Leicestershire District Council,31UH,Property Services,Property Facilities Management,PROPFM,Tersus Consultancy Limited,A046925,20/07/2022,20/07/2022,772.45,General Repairs
North West Leicestershire District Council,31UH,Neighbourhoods & Communities,N & C Community Safety,NACCS,Rapid Vision Systems Ltd,A044267,20/07/2022,20/07/2022,1240.00,Telephones
North West Leicestershire District Council,31UH,Street Management,Environment Transport,ENOT,Refuse Vehicle Solutions Ltd,A047317,20/07/2022,20/07/2022,3800.00,Hire Of Transport
North West Leicestershire District Council,31UH,Street Management,Environment Transport,ENOT,Geesink Norba Limited,A017895,20/07/2022,20/07/2022,456.80,Waste handling Equipment
North West Leicestershire District Council,31UH,Corporate Director,Corporate Director,CORDI,Jeakins Weir Ltd,A047351,20/07/2022,20/07/2022,26335.28,Contract Payments (Other) Ext
North West Leicestershire District Council,31UH,Leisure & Culture,Sport & Physical Activity,SPA,Dura-Sport,A016357,20/07/2022,20/07/2022,260.00,Routine Ground Maintenance
North West Leicestershire District Council,31UH,Street Management,Environment Transport,ENOT,Riverside Truck Rental Ltd,A045702,20/07/2022,20/07/2022,5830.00,Hire Of Transport
North West Leicestershire District Council,31UH,Street Management,Environment Transport,ENOT,Riverside Truck Rental Ltd,A045702,20/07/2022,20/07/2022,5170.00,Hire Of Transport
North West Leicestershire District Council,31UH,Street Management,Environment Transport,ENOT,Riverside Truck Rental Ltd,A045702,20/07/2022,20/07/2022,3938.00,Hire Of Transport
North West Leicestershire District Council,31UH,Street Management,Environment Transport,ENOT,Riverside Truck Rental Ltd,A045702,20/07/2022,20/07/2022,2448.30,Hire Of Transport
North West Leicestershire District Council,31UH,Street Management,Environment Transport,ENOT,Refuse Vehicle Solutions Ltd,A047317,20/07/2022,20/07/2022,4180.00,Hire Of Transport
North West Leicestershire District Council,31UH,Street Management,Environment Transport,ENOT,Refuse Vehicle Solutions Ltd,A047317,20/07/2022,20/07/2022,3040.00,Hire Of Transport
North West Leicestershire District Council,31UH,Planning & Development,Environment - Development Control,EDC,Onsite Central Ltd,A041348,20/07/2022,20/07/2022,3472.00,River Mease Expenditure
North West Leicestershire District Council,31UH,Street Management,Environment Parks,ENOP,The Arboricultural Association,A038889,20/07/2022,20/07/2022,440.00,Training Course
North West Leicestershire District Council,31UH,Housing,HRA Performance & Business Support,HRAPBS,Aareon UK Ltd,A045197,20/07/2022,20/07/2022,1034.67,Contract Payments (Other) Ext
North West Leicestershire District Council,31UH,Housing,HRA Performance & Business Support,HRAPBS,Aareon UK Ltd,A045197,20/07/2022,20/07/2022,975.00,Contract Payments (Other) Ext
North West Leicestershire District Council,31UH,Housing,HRA Performance & Business Support,HRAPBS,Aareon UK Ltd,A045197,20/07/2022,20/07/2022,2175.00,Contract Payments (Other) Ext
North West Leicestershire District Council,31UH,Housing,HRA Performance & Business Support,HRAPBS,Aareon UK Ltd,A045197,20/07/2022,20/07/2022,3045.00,Contract Payments (Other) Ext
North West Leicestershire District Council,31UH,Housing,HRA Performance & Business Support,HRAPBS,Aareon UK Ltd,A045197,20/07/2022,20/07/2022,870.00,Contract Payments (Other) Ext
North West Leicestershire District Council,31UH,Housing,HRA Performance & Business Support,HRAPBS,Aareon UK Ltd,A045197,20/07/2022,20/07/2022,870.00,Contract Payments (Other) Ext
North West Leicestershire District Council,31UH,Information Technology,ICT Services,ICT,Esri (Uk) Ltd,A016303,20/07/2022,20/07/2022,17847.00,Corporate IT Licences
North West Leicestershire District Council,31UH,Corporate Director,Corporate Director,CORDI,PI Group,A047356,20/07/2022,20/07/2022,27885.50,Contract Payments (Other) Ext
North West Leicestershire District Council,31UH,Street Management,Environment - Street Scene,ESS,Olaf Environmental Health Consultancy Ltd,A047542,20/07/2022,20/07/2022,1170.00,Consultants Fees
North West Leicestershire District Council,31UH,Economic Development,Business Focus Group,BFG,Openreach,A038837,20/07/2022,20/07/2022,1290.75,Legal & Professional Services
North West Leicestershire District Council,31UH,Communications,Corporate - Customer Services,CS,Quadient UK Ltd,A000079,20/07/2022,20/07/2022,6003.79,Postages
North West Leicestershire District Council,31UH,Street Management,Environment - Street Scene,ESS,Leicestershire County Council,A000950,20/07/2022,20/07/2022,1166.08,Operational Equipment
North West Leicestershire District Council,31UH,Corporate Director,Human Resources,HR,Health Management Ltd,A038840,20/07/2022,20/07/2022,1804.31,Medical Fees
North West Leicestershire District Council,31UH,Corporate Director,Corporate Director,CORDI,Michael Dyson Associates Ltd,A028431,20/07/2022,20/07/2022,1904.00,Legal & Professional Services
North West Leicestershire District Council,31UH,Communications,Corporate - Customer Services,CS,DX Network Services Limited,A000743,20/07/2022,20/07/2022,1197.77,Postages
North West Leicestershire District Council,31UH,Street Management,Environment Parks,ENOP,County Drains Leicester Ltd,A024295,27/07/2022,27/07/2022,717.43,General Repairs
North West Leicestershire District Council,31UH,Housing,HRA Housing Management,HRAHM,James Andrews Recruitment Solutions,A036290,27/07/2022,27/07/2022,1116.75,Legal & Professional Services
North West Leicestershire District Council,31UH,Housing Repairs,HRA Housing Repairs & Maintenance,HRAHRM,Hays Human Resources,A024378,27/07/2022,27/07/2022,925.00,Agency Staff
North West Leicestershire District Council,31UH,Housing Repairs,HRA Housing Repairs & Maintenance,HRAHRM,Hays Human Resources,A024378,27/07/2022,27/07/2022,925.00,Agency Staff
North West Leicestershire District Council,31UH,Housing Repairs,HRA Housing Repairs & Maintenance,HRAHRM,Hays Human Resources,A024378,27/07/2022,27/07/2022,925.00,Agency Staff
North West Leicestershire District Council,31UH,Housing Repairs,HRA Housing Repairs & Maintenance,HRAHRM,Hays Human Resources,A024378,27/07/2022,27/07/2022,925.00,Agency Staff
North West Leicestershire District Council,31UH,Housing Repairs,HRA Housing Repairs & Maintenance,HRAHRM,Hays Human Resources,A024378,27/07/2022,27/07/2022,925.00,Agency Staff
North West Leicestershire District Council,31UH,Housing Repairs,HRA Housing Repairs & Maintenance,HRAHRM,Hays Human Resources,A024378,27/07/2022,27/07/2022,370.00,Agency Staff
North West Leicestershire District Council,31UH,Planning & Development,Environment - Development Control,EDC,RM Wetlands & Environment Ltd,A046113,27/07/2022,27/07/2022,10305.00,River Mease Expenditure
North West Leicestershire District Council,31UH,Neighbourhoods & Communities,N & C Community Safety,NACCS,Proudcastle,A040322,27/07/2022,27/07/2022,3975.00,CCtv Expenditure
North West Leicestershire District Council,31UH,Neighbourhoods & Communities,N & C Community Safety,NACCS,Proudcastle,A040322,27/07/2022,27/07/2022,4625.00,CCtv Expenditure
North West Leicestershire District Council,31UH,Housing Repairs,HRA Housing Repairs & Maintenance,HRAHRM,Second Element Ltd,A046693,27/07/2022,27/07/2022,426.34,Legionella
North West Leicestershire District Council,31UH,Housing Repairs,HRA Housing Repairs & Maintenance,HRAHRM,Second Element Ltd,A046693,27/07/2022,27/07/2022,324.67,Legionella
North West Leicestershire District Council,31UH,Street Management,Environment Transport,ENOT,Mertrux Ltd,A035291,27/07/2022,27/07/2022,346.13,Vehicle Parts and Maintenance
North West Leicestershire District Council,31UH,Finance,Financial Planning,FINPLA,Moore Stephens Insight Ltd,A045967,27/07/2022,27/07/2022,2000.00,Project Support
North West Leicestershire District Council,31UH,Finance,Financial Planning,FINPLA,Blaby District Council,A000180,27/07/2022,27/07/2022,20802.25,Contributions
North West Leicestershire District Council,31UH,Finance,Financial Planning,FINPLA,Blaby District Council,A000180,27/07/2022,27/07/2022,136857.79,Disabled facilities grant
North West Leicestershire District Council,31UH,Leisure & Culture,Sport & Physical Activity,SPA,Measham Leisure Centre,A027454,27/07/2022,27/07/2022,1449.80,Measham LC Lifestyle DD
North West Leicestershire District Council,31UH,Street Management,Environment - Street Scene,ESS,Air Quality Consultants,A031783,27/07/2022,27/07/2022,2970.00,Air Quality Strategy
North West Leicestershire District Council,31UH,Street Management,Environment Transport,ENOT,HGV Direct Ltd,A046956,27/07/2022,27/07/2022,252.59,Vehicle Parts and Maintenance
North West Leicestershire District Council,31UH,Planning & Development,Environment - Development Control,EDC,United Utilities Water Ltd,A047240,27/07/2022,27/07/2022,473.90,River Mease Expenditure
North West Leicestershire District Council,31UH,Street Management,Environment Transport,ENOT,HGV Direct Ltd,A046956,27/07/2022,27/07/2022,298.58,Vehicle Parts and Maintenance
North West Leicestershire District Council,31UH,Street Management,Environment Parks,ENOP,EPT Services,A039764,27/07/2022,27/07/2022,728.20,Operational Purchases
North West Leicestershire District Council,31UH,Street Management,Environment Parks,ENOP,Regarde Security Ltd,A013049,27/07/2022,27/07/2022,1236.75,Security Services
North West Leicestershire District Council,31UH,Environmental Health,Environmental Health & Licensing,EEHL,Eville And Jones Limited,A033670,27/07/2022,27/07/2022,2961.15,Vet Inspection
North West Leicestershire District Council,31UH,Street Management,Environment Parks,ENOP,John Merison BMC Ltd,A001092,27/07/2022,27/07/2022,10640.00,General Repairs
North West Leicestershire District Council,31UH,Property Services,Property Facilities Management,PROPFM,Second Element Ltd,A046693,27/07/2022,27/07/2022,760.00,Service Contracts
North West Leicestershire District Council,31UH,Street Management,Environment Parks,ENOP,Plantscape Ltd,A033650,27/07/2022,27/07/2022,6756.00,Operational Purchases
North West Leicestershire District Council,31UH,Information Technology,ICT Services,ICT,ACS Systems (UK) Ltd T/a ACS Office Solutions,A043447,27/07/2022,27/07/2022,630.00,Contract Payments (Other) Ext
North West Leicestershire District Council,31UH,Information Technology,ICT Services,ICT,QA Ltd,A034064,27/07/2022,27/07/2022,1415.00,Training Course
North West Leicestershire District Council,31UH,Street Management,Environment Transport,ENOT,Enterprise Rent-A-Car UK Ltd,A046419,27/07/2022,27/07/2022,761.60,Hire Of Transport
North West Leicestershire District Council,31UH,Street Management,Environment Transport,ENOT,S & B Tyres Limited,A034071,27/07/2022,27/07/2022,1760.00,Vehicle Parts and Maintenance
North West Leicestershire District Council,31UH,Street Management,Environment Transport,ENOT,WasteParts UK Limited,A036236,27/07/2022,27/07/2022,940.00,Vehicle Parts and Maintenance
North West Leicestershire District Council,31UH,Street Management,Environment Transport,ENOT,Mertrux Ltd,A035291,27/07/2022,27/07/2022,454.28,Vehicle Parts and Maintenance
North West Leicestershire District Council,31UH,Street Management,Environment Transport,ENOT,J F Lloyd & Sons,A000991,27/07/2022,27/07/2022,300.00,Hire Of Operational Equipment
North West Leicestershire District Council,31UH,Legal & Democratic,Legal Services,LDLS,Adobe Systems Software Ireland Ltd,A047106,27/07/2022,27/07/2022,1500.00,Computing
North West Leicestershire District Council,31UH,Information Technology,ICT Services,ICT,ACS Systems (UK) Ltd T/a ACS Office Solutions,A043447,27/07/2022,27/07/2022,950.00,Contract Payments (Other) Ext
North West Leicestershire District Council,31UH,Street Management,Environment Transport,ENOT,Cuckoo Gap Limited,A000438,27/07/2022,27/07/2022,725.00,General Repairs
